lending/lending_fUSD_20250501
["ID","MTS","AMOUNT","RATE_DAILY","PERIOD"]
[359581461,1746143443938,-150.0,0.0003528,2]
[359581462,1746143443947,-1263813.59389274,0.000353,2]
[359581463,1746143443957,-2159.61,0.000353,2]
[359581464,1746143443968,-150.0,0.00035345,2]
[359581465,1746143443979,-150.0,0.00035355,2]
[359581466,1746143443990,-167.52606627,0.0003537,30]
[359581467,1746143443999,-150.0,0.00035372,2]
[359581468,1746143444009,-150.0,0.00035373,2]
[359581469,1746143444019,-2159.61,0.000354,2]
[359581470,1746143444028,-2159.61,0.000354,2]
[359581471,1746143444038,-797.0,0.00035422,2]
[359581472,1746143444048,-500.0,0.00035438,2]
[359581473,1746143444058,-499.4932,0.00035438,2]
[359581474,1746143444067,-2110.0,0.00035438,2]
[359581475,1746143444077,-150.0,0.00035439,2]
[359581476,1746143444086,-150.0,0.00035499,2]
[359581477,1746143444096,-1088.3938,0.00035516,2]
[359581478,1746143444105,-150.0,0.00035549,2]
[359581479,1746143444115,-20000.0,0.000356,120]
[359581480,1746143444127,-2512.1005772,0.00035613,2]
[359581481,1746143444137,-66932.8995332,0.00035613,2]
[359581482,1746143444147,-736.8408636,0.00035613,2]
[359581483,1746143444156,-300.0,0.00035614,10]
[359581484,1746143444166,-1262.53,0.00035616,5]
[359581485,1746143444175,-156.696665,0.00035616,11]
[359581486,1746143444185,-151.0,0.00035616,7]
[359581487,1746143444195,-268.508866,0.00035616,7]
[359581488,1746143444204,-152.544242,0.00035616,7]
[359581489,1746143444214,-283.23952419,0.00035616,11]
[359581490,1746143444223,-530.0,0.00035616,11]
[359581491,1746143444233,-450.0,0.00035616,11]
[359581492,1746143444242,-430.01230737,0.00035616,11]
[359581493,1746143444251,-450.0,0.00035616,11]
[359581494,1746143444261,-450.0,0.00035616,11]
[359581495,1746143444270,-364.21772956,0.00035616,11]
[359581496,1746143444279,-624.88142714,0.00035616,11]
[359581497,1746143444289,-500.0,0.00035616,11]
[359581498,1746143444299,-500.0,0.00035616,11]
[359581499,1746143444309,-450.0,0.00035616,11]
[359581500,1746143444319,-450.0,0.00035616,11]
[359581501,1746143444328,-450.0,0.00035616,11]
[359581502,1746143444338,-450.0,0.00035616,11]
[359581503,1746143444350,-1033.35,0.00035616,11]
[359581504,1746143444360,-450.0,0.00035616,11]
[359581505,1746143444369,-450.0,0.00035616,11]
[359581506,1746143444379,-450.0,0.00035616,11]
[359581507,1746143444389,-450.0,0.00035616,11]
[359581508,1746143444398,-450.0,0.00035616,11]
[359581509,1746143444407,-450.0,0.00035616,11]
[359581510,1746143444417,-450.0,0.00035616,11]
[359581511,1746143444426,-450.0,0.00035616,11]
[359581512,1746143444436,-1405.6,0.00035616,11]
[359581513,1746143444445,-450.0,0.00035616,11]
[359581514,1746143444455,-450.0,0.00035616,11]
[359581515,1746143444464,-450.0,0.00035616,11]
[359581516,1746143444474,-450.0,0.00035616,11]
[359581517,1746143444483,-450.0,0.00035616,11]
[359581518,1746143444493,-672.09,0.00035616,11]
[359581519,1746143444502,-450.0,0.00035616,11]
[359581520,1746143444511,-450.0,0.00035616,11]
[359581521,1746143444520,-249.81271707,0.00035616,11]
[359581522,1746143444530,-437.39136868,0.00035616,11]
[359581523,1746143444539,-450.0,0.00035616,11]
[359581524,1746143444549,-847.07,0.00035616,11]
[359581525,1746143444559,-450.0,0.00035616,11]
[359581526,1746143444568,-450.0,0.00035616,11]
[359581527,1746143444578,-569.05868317,0.00035616,11]
[359581528,1746143444587,-450.0,0.00035616,11]
[359581529,1746143444597,-450.0,0.00035616,11]
[359581530,1746143444606,-563.92,0.00035616,11]
[359581531,1746143444616,-524.97,0.00035616,11]
[359581532,1746143444626,-722.56,0.00035616,11]
[359581533,1746143444635,-500.0,0.00035616,11]
[359581534,1746143444646,-450.0,0.00035616,11]
[359581535,1746143444655,-450.0,0.00035616,11]
[359581536,1746143444665,-450.0,0.00035616,11]
[359581537,1746143444675,-450.0,0.00035616,11]
[359581538,1746143444684,-450.0,0.00035616,11]
[359581539,1746143444694,-289.916233,0.00035616,7]
[359581540,1746143444704,-676.92,0.00035616,11]
[359581541,1746143444713,-289.916233,0.00035616,7]
[359581542,1746143444723,-450.0,0.00035616,11]
[359581543,1746143444732,-583.23,0.00035616,11]
[359581544,1746143444742,-450.0,0.00035616,11]
[359581545,1746143444751,-892.78,0.00035616,11]
[359581546,1746143444761,-1000.0,0.00035616,11]
[359581547,1746143444771,-450.0,0.00035616,11]
[359581548,1746143444780,-450.0,0.00035616,11]
[359581549,1746143444791,-423.78600852,0.00035616,11]
[359581550,1746143444801,-450.0,0.00035616,11]
[359581551,1746143444811,-450.0,0.00035616,11]
[359581552,1746143444820,-459.01,0.00035616,11]
[359581553,1746143444829,-450.0,0.00035616,11]
[359581554,1746143444838,-669.13,0.00035616,11]
[359581555,1746143444847,-1072.81,0.00035616,11]
[359581556,1746143444857,-450.0,0.00035616,11]
[359581557,1746143444867,-450.0,0.00035616,11]
[359581558,1746143444877,-190.98700723,0.00035616,11]
[359581559,1746143444888,-317.07099366,0.00035616,11]
[359581560,1746143444899,-450.0,0.00035616,11]
[359581561,1746143444908,-255.29151603,0.00035616,11]
[359581562,1746143444918,-196.2744216,0.00035616,11]
[359581563,1746143444929,-450.0,0.00035616,11]
[359581564,1746143444939,-450.0,0.00035616,11]
[359581565,1746143444949,-450.0,0.00035616,11]
[359581566,1746143444958,-450.0,0.00035616,11]
[359581567,1746143444967,-450.0,0.00035616,11]
[359581568,1746143444978,-450.0,0.00035616,11]
[359581569,1746143444988,-450.0,0.00035616,11]
[359581570,1746143444997,-468.57,0.00035616,11]
[359581571,1746143445007,-450.0,0.00035616,11]
[359581572,1746143445016,-400.06413632,0.00035616,11]
[359581573,1746143445025,-450.0,0.00035616,11]
[359581574,1746143445035,-514.35,0.00035616,11]
[359581575,1746143445045,-450.0,0.00035616,11]
[359581576,1746143445054,-822.32,0.00035616,11]
[359581577,1746143445064,-450.0,0.00035616,11]
[359581578,1746143445073,-450.0,0.00035616,11]
[359581579,1746143445082,-450.0,0.00035616,11]
[359581580,1746143445091,-450.0,0.00035616,11]
[359581581,1746143445101,-450.0,0.00035616,11]
[359581582,1746143445110,-773.56,0.00035616,11]
[359581583,1746143445120,-450.0,0.00035616,11]
[359581584,1746143445129,-799.0,0.00035616,11]
[359581585,1746143445138,-450.0,0.00035616,11]
[359581586,1746143445150,-503.56129683,0.00035616,11]
[359581587,1746143445159,-450.0,0.00035616,11]
[359581588,1746143445169,-450.0,0.00035616,11]
[359581589,1746143445179,-470.0,0.00035616,11]
[359581590,1746143445188,-450.0,0.00035616,11]
[359581591,1746143445198,-450.0,0.00035616,11]
[359581592,1746143445208,-595.14794625,0.00035616,11]
[359581593,1746143445217,-450.0,0.00035616,11]
[359581594,1746143445228,-450.0,0.00035616,11]
[359581595,1746143445237,-450.0,0.00035616,11]
[359581596,1746143445247,-450.0,0.00035616,11]
[359581597,1746143445257,-450.0,0.00035616,11]
[359581598,1746143445267,-1932.82,0.00035616,11]
[359581599,1746143445276,-450.0,0.00035616,11]
[359581600,1746143445286,-151.0,0.00035616,7]
[359581601,1746143445295,-450.0,0.00035616,11]
[359581602,1746143445305,-715.1,0.00035616,11]
[359581603,1746143445314,-450.0,0.00035616,11]
[359581604,1746143445547,-547.09244354,0.00035616,11]
[359581605,1746143445558,-470.0,0.00035616,11]
[359581606,1746143445569,-450.0,0.00035616,11]
[359581607,1746143445579,-314.10185125,0.00035616,11]
[359581608,1746143445588,-450.0,0.00035616,11]
[359581609,1746143445598,-450.0,0.00035616,11]
[359581610,1746143445610,-450.0,0.00035616,11]
[359581611,1746143445620,-450.0,0.00035616,11]
[359581613,1746143445631,-450.0,0.00035616,11]
[359581615,1746143445641,-450.0,0.00035616,11]
[359581617,1746143445650,-563.63334912,0.00035616,11]
[359581619,1746143445660,-450.0,0.00035616,11]
[359581621,1746143445670,-450.0,0.00035616,11]
[359581623,1746143445680,-450.0,0.00035616,11]
[359581624,1746143445690,-650.18,0.00035616,11]
[359581625,1746143445699,-732.03,0.00035616,11]
[359581626,1746143445709,-470.0,0.00035616,11]
[359581627,1746143445718,-470.0,0.00035616,11]
[359581628,1746143445728,-450.0,0.00035616,11]
[359581629,1746143445738,-470.0,0.00035616,11]
[359581630,1746143445747,-470.0,0.00035616,11]
[359581631,1746143445757,-328.28806587,0.00035616,11]
[359581632,1746143445766,-515.21436929,0.00035616,11]
[359581633,1746143445776,-450.0,0.00035616,11]
[359581634,1746143445786,-520.40783901,0.00035616,11]
[359581635,1746143445796,-450.0,0.00035616,11]
[359581636,1746143445807,-450.0,0.00035616,11]
[359581637,1746143445816,-613.48,0.00035616,11]
[359581638,1746143445826,-450.0,0.00035616,11]
[359581639,1746143445836,-450.0,0.00035616,11]
[359581640,1746143445846,-470.0,0.00035616,11]
[359581641,1746143445857,-544.03290989,0.00035616,11]
[359581642,1746143445866,-506.62951213,0.00035616,11]
[359581643,1746143445876,-450.0,0.00035616,11]
[359581644,1746143445888,-519.60641029,0.00035616,11]
[359581645,1746143445900,-450.0,0.00035616,11]
[359581646,1746143445909,-470.0,0.00035616,11]
[359581647,1746143445919,-470.0,0.00035616,11]
[359581648,1746143445929,-450.0,0.00035616,11]
[359581649,1746143445940,-151.0,0.00035616,7]
[359581650,1746143445949,-510.94729012,0.00035616,11]
[359581651,1746143445959,-470.0,0.00035616,11]
[359581652,1746143445969,-450.0,0.00035616,11]
[359581653,1746143445979,-223.861338,0.00035616,7]
[359581654,1746143445989,-450.0,0.00035616,11]
[359581655,1746143445998,-620.25,0.00035616,11]
[359581656,1746143446008,-552.99025991,0.00035616,11]
[359581657,1746143446018,-223.861338,0.00035616,7]
[359581658,1746143446027,-470.0,0.00035616,11]
[359581659,1746143446036,-450.0,0.00035616,11]
[359581660,1746143446046,-450.0,0.00035616,11]
[359581661,1746143446055,-450.0,0.00035616,11]
[359581662,1746143446066,-470.0,0.00035616,11]
[359581663,1746143446075,-470.0,0.00035616,11]
[359581664,1746143446085,-450.0,0.00035616,11]
[359581665,1746143446095,-470.0,0.00035616,11]
[359581666,1746143446105,-470.0,0.00035616,11]
[359581667,1746143446115,-437.02685647,0.00035616,11]
[359581668,1746143446124,-450.0,0.00035616,11]
[359581669,1746143446134,-522.13004165,0.00035616,11]
[359581670,1746143446145,-450.0,0.00035616,11]
[359581671,1746143446155,-589.17004158,0.00035616,11]
[359581672,1746143446165,-615.49,0.00035616,11]
[359581673,1746143446175,-450.0,0.00035616,11]
[359581674,1746143446185,-527.32593544,0.00035616,11]
[359581675,1746143446195,-766.2,0.00035616,11]
[359581676,1746143446204,-450.0,0.00035616,11]
[359581677,1746143446214,-1153.29,0.00035616,11]
[359581678,1746143446224,-488.39889744,0.00035616,11]
[359581679,1746143446233,-470.0,0.00035616,11]
[359581680,1746143446242,-450.0,0.00035616,11]
[359581681,1746143446252,-473.46,0.00035616,11]
[359581682,1746143446261,-450.0,0.00035616,11]
[359581683,1746143446271,-450.0,0.00035616,11]
[359581684,1746143446281,-450.0,0.00035616,11]
[359581685,1746143446290,-450.0,0.00035616,11]
[359581686,1746143446299,-450.0,0.00035616,11]
[359581687,1746143446309,-450.0,0.00035616,11]
[359581688,1746143446319,-450.0,0.00035616,11]
[359581689,1746143446329,-450.0,0.00035616,11]
[359581690,1746143446339,-450.0,0.00035616,11]
[359581691,1746143446350,-450.0,0.00035616,11]
[359581692,1746143446360,-450.0,0.00035616,11]
[359581693,1746143446370,-578.29,0.00035616,11]
[359581694,1746143446381,-939.06,0.00035616,11]
[359581695,1746143446391,-570.89202506,0.00035616,11]
[359581696,1746143446400,-521.97863277,0.00035616,11]
[359581697,1746143446410,-920.25,0.00035616,11]
[359581698,1746143446420,-1016.8,0.00035616,11]
[359581699,1746143446430,-500.0,0.00035616,5]
[359581700,1746143446440,-470.0,0.00035616,11]
[359581701,1746143446450,-150.0,0.00035616,5]
[359581702,1746143446459,-508.4729682,0.00035616,11]
[359581703,1746143446469,-450.0,0.00035616,11]
[359581704,1746143446479,-555.7194512,0.00035616,11]
[359581705,1746143446488,-500.0,0.00035616,5]
[359581706,1746143446498,-470.0,0.00035616,11]
[359581707,1746143446507,-450.0,0.00035616,11]
[359581708,1746143446517,-450.0,0.00035616,11]
[359581709,1746143446527,-540.67462839,0.00035616,11]
[359581710,1746143446536,-450.0,0.00035616,11]
[359581711,1746143446546,-500.0,0.00035616,5]
[359581712,1746143446555,-450.0,0.00035616,11]
[359581713,1746143446564,-450.0,0.00035616,11]
[359581714,1746143446574,-450.0,0.00035616,11]
[359581715,1746143446584,-500.0,0.00035616,5]
[359581716,1746143446593,-470.0,0.00035616,11]
[359581717,1746143446602,-500.0,0.00035616,5]
[359581718,1746143446612,-470.0,0.00035616,11]
[359581719,1746143446622,-470.0,0.00035616,11]
[359581720,1746143446631,-450.0,0.00035616,11]
[359581721,1746143446641,-470.0,0.00035616,11]
[359581722,1746143446650,-525.60586167,0.00035616,11]
[359581723,1746143446659,-508.74659321,0.00035616,11]
[359581724,1746143446669,-710.22,0.00035616,11]
[359581725,1746143446679,-450.0,0.00035616,11]
[359581726,1746143446688,-450.0,0.00035616,2]
[359581727,1746143446697,-450.0,0.00035616,11]
[359581728,1746143446707,-470.0,0.00035616,11]
[359581729,1746143446716,-470.0,0.00035616,11]
[359581730,1746143446726,-529.91644247,0.00035616,11]
[359581731,1746143446735,-450.0,0.00035616,11]
[359581732,1746143446745,-493.94,0.00035616,11]
[359581733,1746143446755,-500.0,0.00035616,11]
[359581734,1746143446764,-504.43979664,0.00035616,11]
[359581735,1746143446773,-514.56565839,0.00035616,11]
[359581736,1746143446783,-450.0,0.00035616,2]
[359581737,1746143446792,-1150.22,0.00035616,11]
[359581738,1746143446801,-470.0,0.00035616,11]
[359581739,1746143446811,-578.53276195,0.00035616,11]
[359581740,1746143446822,-500.0,0.00035616,13]
[359581741,1746143446832,-500.0,0.00035616,13]
[359581742,1746143446843,-500.0,0.00035616,13]
[359581743,1746143446853,-450.0,0.00035616,11]
[359581744,1746143446863,-500.0,0.00035616,13]
[359581745,1746143446872,-500.0,0.00035616,13]
[359581746,1746143446882,-500.0,0.00035616,13]
[359581747,1746143446892,-618.3464702,0.00035616,13]
[359581748,1746143446903,-470.0,0.00035616,11]
[359581749,1746143446916,-450.0,0.00035616,11]
[359581750,1746143446927,-470.0,0.00035616,11]
[359581751,1746143446938,-450.0,0.00035616,11]
[359581752,1746143446947,-470.0,0.00035616,11]
[359581753,1746143446957,-3225.23,0.00035616,11]
[359581754,1746143446967,-470.0,0.00035616,11]
[359581755,1746143446977,-613.48,0.00035616,11]
[359581756,1746143446986,-170.980923,0.00035616,7]
[359581757,1746143446996,-535.38615794,0.00035616,11]
[359581758,1746143447006,-1075.77,0.00035616,11]
[359581759,1746143447016,-450.0,0.00035616,11]
[359581760,1746143447026,-170.980923,0.00035616,7]
[359581761,1746143447035,-470.0,0.00035616,11]
[359581762,1746143447045,-484.13,0.00035616,11]
[359581763,1746143447055,-470.0,0.00035616,11]
[359581764,1746143447064,-450.0,0.00035616,11]
[359581765,1746143447074,-517.42484704,0.00035616,11]
[359581766,1746143447083,-500.0,0.00035616,11]
[359581767,1746143447093,-500.0,0.00035616,11]
[359581768,1746143447103,-500.0,0.00035616,11]
[359581769,1746143447112,-470.0,0.00035616,11]
[359581770,1746143447122,-500.0,0.00035616,11]
[359581771,1746143447132,-507.77604178,0.00035616,11]
[359581772,1746143447141,-470.0,0.00035616,11]
[359581773,1746143447151,-450.0,0.00035616,11]
[359581774,1746143447161,-983.38,0.00035616,11]
[359581775,1746143447171,-525.06502007,0.00035616,11]
[359581776,1746143447181,-451.73,0.00035616,11]
[359581777,1746143447191,-1087.08,0.00035616,11]
[359581778,1746143447201,-470.0,0.00035616,11]
[359581779,1746143447210,-517.74829216,0.00035616,11]
[359581780,1746143447220,-450.0,0.00035616,11]
[359581781,1746143447230,-613.96,0.00035616,11]
[359581782,1746143447240,-483.06,0.00035616,11]
[359581783,1746143447250,-470.0,0.00035616,11]
[359581784,1746143447259,-982.42,0.00035616,11]
[359581785,1746143447269,-470.0,0.00035616,11]
[359581786,1746143447278,-522.74,0.00035616,11]
[359581787,1746143447288,-547.8991961,0.00035616,11]
[359581788,1746143447298,-512.71650542,0.00035616,11]
[359581789,1746143447308,-1485.28,0.00035616,11]
[359581790,1746143447317,-450.0,0.00035616,11]
[359581791,1746143447326,-450.0,0.00035616,11]
[359581792,1746143447336,-450.0,0.00035616,11]
[359581793,1746143447345,-470.0,0.00035616,11]
[359581794,1746143447356,-470.0,0.00035616,11]
[359581795,1746143447365,-546.26285448,0.00035616,11]
[359581796,1746143447374,-450.0,0.00035616,11]
[359581797,1746143447383,-450.0,0.00035616,11]
[359581798,1746143447393,-450.0,0.00035616,11]
[359581799,1746143447402,-450.0,0.00035616,11]
[359581800,1746143447412,-450.0,0.00035616,11]
[359581801,1746143447421,-470.0,0.00035616,11]
[359581802,1746143447431,-524.63639722,0.00035616,11]
[359581803,1746143447440,-450.0,0.00035616,11]
[359581804,1746143447450,-1328.02,0.00035616,11]
[359581805,1746143447459,-470.0,0.00035616,11]
[359581806,1746143447468,-540.59207806,0.00035616,11]
[359581807,1746143447478,-470.0,0.00035616,11]
[359581808,1746143447487,-524.86176293,0.00035616,11]
[359581809,1746143447497,-500.0,0.00035616,11]
[359581810,1746143447507,-470.0,0.00035616,11]
[359581811,1746143447516,-566.17898396,0.00035616,11]
[359581812,1746143447526,-637.94,0.00035616,11]
[359581813,1746143447535,-541.10265667,0.00035616,11]
[359581814,1746143447546,-500.0,0.00035616,11]
[359581815,1746143447555,-470.0,0.00035616,11]
[359581816,1746143447565,-450.0,0.00035616,11]
[359581817,1746143447576,-470.0,0.00035616,11]
[359581818,1746143447586,-450.0,0.00035616,11]
[359581819,1746143447597,-470.0,0.00035616,11]
[359581820,1746143447607,-1809.19,0.00035616,11]
[359581821,1746143447618,-585.69990437,0.00035616,11]
[359581822,1746143447628,-470.0,0.00035616,11]
[359581823,1746143447639,-450.0,0.00035616,11]
[359581824,1746143447648,-450.0,0.00035616,11]
[359581825,1746143447658,-450.0,0.00035616,11]
[359581826,1746143447668,-270.72167125,0.00035616,11]
[359581827,1746143447677,-450.0,0.00035616,11]
[359581828,1746143447687,-467.26,0.00035616,11]
[359581829,1746143447697,-155.19375521,0.00035616,11]
[359581830,1746143447707,-500.0,0.00035616,11]
[359581831,1746143447717,-485.98,0.00035616,11]
[359581832,1746143447726,-733.99,0.00035616,11]
[359581833,1746143447736,-450.0,0.00035616,11]
[359581834,1746143447745,-470.0,0.00035616,11]
[359581835,1746143447755,-542.3392265,0.00035616,11]
[359581836,1746143447765,-450.0,0.00035616,11]
[359581837,1746143447775,-470.0,0.00035616,11]
[359581838,1746143447785,-554.68,0.00035616,11]
[359581839,1746143447795,-470.0,0.00035616,11]
[359581840,1746143447804,-1202.2,0.00035616,11]
[359581841,1746143447813,-527.49764963,0.00035616,11]
[359581842,1746143447823,-511.14124875,0.00035616,11]
[359581843,1746143447832,-450.0,0.00035616,11]
[359581844,1746143447842,-1057.75,0.00035616,11]
[359581845,1746143447851,-469.3,0.00035616,11]
[359581846,1746143447861,-175.13126861,0.00035616,11]
[359581847,1746143447870,-450.0,0.00035616,11]
[359581848,1746143447880,-571.53067943,0.00035616,11]
[359581849,1746143447889,-500.0,0.00035616,11]
[359581850,1746143447898,-500.0,0.00035616,11]
[359581851,1746143447985,-500.0,0.00035616,11]
[359581852,1746143447994,-500.0,0.00035616,11]
[359581853,1746143448004,-519.87605263,0.00035616,11]
[359581854,1746143448013,-798.04,0.00035616,11]
[359581855,1746143448023,-470.0,0.00035616,11]
[359581856,1746143448033,-550.3813052,0.00035616,11]
[359581857,1746143448043,-521.83174376,0.00035616,11]
[359581858,1746143448052,-450.0,0.00035616,11]
[359581859,1746143448062,-633.53,0.00035616,11]
[359581860,1746143448072,-239.77931832,0.00035616,11]
[359581861,1746143448081,-500.0,0.00035616,11]
[359581862,1746143448091,-450.0,0.00035616,11]
[359581863,1746143448101,-450.0,0.00035616,11]
[359581864,1746143448111,-470.0,0.00035616,11]
[359581865,1746143448121,-470.0,0.00035616,11]
[359581866,1746143448131,-450.0,0.00035616,11]
[359581867,1746143448141,-151.0,0.00035616,7]
[359581868,1746143448150,-450.0,0.00035616,11]
[359581869,1746143448160,-450.0,0.00035616,11]
[359581870,1746143448170,-151.0,0.00035616,7]
[359581871,1746143448180,-561.20918129,0.00035616,11]
[359581872,1746143448190,-500.0,0.00035616,11]
[359581873,1746143448199,-470.0,0.00035616,11]
[359581874,1746143448209,-450.0,0.00035616,11]
[359581875,1746143448219,-507.17289959,0.00035616,11]
[359581876,1746143448229,-450.0,0.00035616,11]
[359581877,1746143448239,-450.0,0.00035616,11]
[359581878,1746143448248,-500.0,0.00035616,11]
[359581879,1746143448258,-450.0,0.00035616,11]
[359581880,1746143448268,-530.01065887,0.00035616,11]
[359581881,1746143448278,-902.5,0.00035616,11]
[359581882,1746143448288,-1326.45,0.00035616,11]
[359581883,1746143448298,-570.44827194,0.00035616,11]
[359581884,1746143448308,-2075.49,0.00035616,11]
[359581885,1746143448319,-456.08,0.00035616,11]
[359581886,1746143448329,-575.81,0.00035616,11]
[359581887,1746143448339,-511.0196778,0.00035616,11]
[359581888,1746143448349,-450.0,0.00035616,11]
[359581889,1746143448359,-450.0,0.00035616,11]
[359581890,1746143448369,-458.85,0.00035616,11]
[359581891,1746143448379,-1359.42,0.00035616,11]
[359581892,1746143448390,-806.89,0.00035616,11]
[359581893,1746143448400,-470.0,0.00035616,11]
[359581894,1746143448410,-502.86085126,0.00035616,11]
[359581895,1746143448419,-450.0,0.00035616,11]
[359581896,1746143448429,-934.72,0.00035616,11]
[359581897,1746143448438,-594.82,0.00035616,11]
[359581898,1746143448448,-500.09,0.00035616,11]
[359581899,1746143448458,-450.0,0.00035616,11]
[359581900,1746143448468,-516.70590191,0.00035616,11]
[359581901,1746143448478,-151.0,0.00035616,7]
[359581902,1746143448488,-470.0,0.00035616,11]
[359581903,1746143448497,-756.88,0.00035616,11]
[359581904,1746143448507,-450.0,0.00035616,11]
[359581905,1746143448517,-501.05,0.00035616,11]
[359581906,1746143448527,-450.0,0.00035616,11]
[359581907,1746143448537,-507.60100621,0.00035616,11]
[359581908,1746143448547,-470.0,0.00035616,11]
[359581909,1746143448557,-470.0,0.00035616,11]
[359581910,1746143448567,-450.0,0.00035616,11]
[359581911,1746143448577,-470.0,0.00035616,11]
[359581912,1746143448587,-470.0,0.00035616,11]
[359581913,1746143448597,-181.42403,0.00035616,7]
[359581914,1746143448606,-888.87,0.00035616,11]
[359581915,1746143448616,-500.0,0.00035616,11]
[359581916,1746143448625,-470.0,0.00035616,11]
[359581917,1746143448635,-450.0,0.00035616,11]
[359581918,1746143448645,-580.73,0.00035616,11]
[359581919,1746143448655,-522.9194497,0.00035616,11]
[359581920,1746143448665,-621.12,0.00035616,11]
[359581921,1746143448674,-450.0,0.00035616,11]
[359581922,1746143448684,-181.42403,0.00035616,7]
[359581923,1746143448693,-187.57071096,0.00035616,11]
[359581924,1746143448703,-450.0,0.00035616,11]
[359581925,1746143448714,-658.3,0.00035616,11]
[359581926,1746143448723,-875.6,0.00035616,11]
[359581927,1746143448733,-470.0,0.00035616,11]
[359581928,1746143448743,-470.0,0.00035616,11]
[359581929,1746143448752,-950.96,0.00035616,11]
[359581930,1746143448762,-470.0,0.00035616,11]
[359581931,1746143448771,-1575.46,0.00035616,11]
[359581932,1746143448780,-496.15403073,0.00035616,11]
[359581933,1746143448790,-470.0,0.00035616,11]
[359581934,1746143448799,-450.0,0.00035616,11]
[359581935,1746143448808,-1012.65,0.00035616,11]
[359581936,1746143448817,-470.0,0.00035616,11]
[359581937,1746143448827,-500.0,0.00035616,11]
[359581938,1746143448837,-159.57716,0.00035616,7]
[359581939,1746143448846,-810.37,0.00035616,11]
[359581940,1746143448855,-450.0,0.00035616,11]
[359581941,1746143448865,-540.83,0.00035616,11]
[359581942,1746143448874,-500.0,0.00035616,11]
[359581943,1746143448884,-825.62,0.00035616,11]
[359581944,1746143448894,-450.0,0.00035616,11]
[359581945,1746143448905,-738.57,0.00035616,11]
[359581946,1746143448915,-470.0,0.00035616,11]
[359581947,1746143448924,-450.0,0.00035616,11]
[359581948,1746143448933,-450.0,0.00035616,11]
[359581949,1746143448943,-470.0,0.00035616,7]
[359581950,1746143448953,-470.0,0.00035616,11]
[359581951,1746143448963,-540.6070837,0.00035616,11]
[359581952,1746143448972,-602.74,0.00035616,11]
[359581953,1746143448981,-541.96374485,0.00035616,11]
[359581954,1746143448991,-2040.31,0.00035616,11]
[359581955,1746143449000,-575.65405594,0.00035616,11]
[359581956,1746143449010,-450.0,0.00035616,11]
[359581957,1746143449019,-450.0,0.00035616,11]
[359581958,1746143449029,-450.0,0.00035616,11]
[359581959,1746143449039,-470.0,0.00035616,11]
[359581960,1746143449049,-450.0,0.00035616,11]
[359581961,1746143449058,-450.0,0.00035616,11]
[359581962,1746143449067,-1983.46,0.00035616,11]
[359581963,1746143449076,-151.0,0.00035616,7]
[359581964,1746143449086,-899.52,0.00035616,11]
[359581965,1746143449096,-450.0,0.00035616,11]
[359581966,1746143449104,-511.56,0.00035616,11]